Cogmind - Beta 16.1 @@@ ROGUE MODE // 2026.03.15 @ 15:03:35 Player: EX-OCT Result: Destroyed by D-53 Grenadier with Mini Grenade Launcher Performance ------------- Evolutions (0) 0 Regions Visited (2) 400 Robots Destroyed (28) 140 Value Destroyed (520) 520 Prototype IDs (0) 0 Alien Tech Used (0) 0 Bonus (0) 0 TOTAL SCORE: 1060 Bonus ------- None Cogmind --------- Core Integrity 0/250 Matter 237/300 Energy 100/100 System Corruption 0% Temperature Cool (2) Movement Treading (240) Ox1 Location -10/Mines Parts ------- > --- POWER (1) -------- (None) > --- PROPULSION (2) --- Light Treads > --- UTILITY (2) ------ Large Storage Unit > --- WEAPON (2) ------- Light Assault Rifle Improved Light Cannon > --- INVENTORY (15) --- Wheel Flight Unit Flight Unit Flight Unit Flight Unit Flight Unit Flight Unit Flight Unit Structural Scanner Light Assault Rifle Rocket Launcher Maul Peak State ------------ > --- POWER ------------ Light Ion Engine > --- PROPULSION ------- Light Treads Wheel > --- UTILITY ---------- Large Storage Unit Propulsion Shielding > --- WEAPON ----------- Improved Light Cannon Improved Light Cannon > --- INVENTORY -------- Light Treads Wheel Flight Unit Flight Unit Flight Unit Flight Unit Flight Unit Flight Unit Flight Unit Structural Scanner Light Assault Rifle Light Assault Rifle Improved Light Cannon Rocket Launcher Maul [Rating: 10] Favorites ----------- Power Light Ion Engine Engine Light Ion Engine Propulsion Light Treads Treads Light Treads Wheel Wheel Utility Large Storage Unit Device Seismic Detector Storage Large Storage Unit Protection Propulsion Shielding Weapon Improved Light Cannon Energy Gun Small Laser Ballistic Gun Light Assault Rifle Ballistic Cannon Improved Light Cannon Build | -11 -10 -10 ------- Run | Yrd Mat Min Slots Evolved . | . . . Power . | . . . Propulsion . | . . . Utility . | . . . Weapon . | . . . Parts Attached 16 | 7 6 3 Power 2 | 1 1 . Engine 2 | 1 1 . Core . | . . . Reactor . | . . . Propulsion 4 | 2 1 1 Treads 2 | 1 . 1 Leg . | . . . Wheel 2 | 1 1 . Hover . | . . . Flight . | . . . Utility 4 | 2 2 . Device 1 | 1 . . Storage 2 | 1 1 . Processor . | . . . Hackware . | . . . Protection 1 | . 1 . Artifact . | . . . Weapon 6 | 2 2 2 Energy Gun 2 | 2 . . Energy Cannon . | . . . Ballistic Gun 1 | . . 1 Ballistic Cannon 3 | . 2 1 Launcher . | . . . Special Weapon . | . . . Impact Weapon . | . . . Slashing Weapon . | . . . Piercing Weapon . | . . . Special Melee Weapon . | . . . Unidentified Prototypes . | . . . Parts Lost 7 | . 1 6 Power 1 | . . 1 Propulsion 2 | . . 2 Utility 2 | . 1 1 Weapon 2 | . . 2 Highest Loss Streak 6 | . 1 6 To Critical Strikes . | . . . Average Backups 12 | 1 13 14 Power . | . . . Propulsion 7 | 1 8 8 Utility 1 | . 1 1 Weapon 3 | . 4 4 Tool/Special . | . . . Unused Backups 13 | . 2 11 Power . | . . . Propulsion 8 | . 1 7 Utility 1 | . . 1 Weapon 4 | . 1 3 Tool/Special . | . . . Average Slot Usage (%) 95 | . 95 90 Engine 13 | . 14 10 Treads 13 | . 14 12 Wheel 13 | . 14 12 Device 1 | . 2 . Storage 14 | . 14 14 Protection 8 | . 7 11 Energy Gun 7 | . 8 . Ballistic Cannon 19 | . 19 25 Peak Build Rating 10 | 7 10 10 Average Rating 8 | 5 8 9 On Entrance 5 | . 7 10 Avg Prop Armor Cover (%) 11 | 15 11 11 Naked Turns . | . . . Heaviest Build 32 | 11 32 32 Greatest Support 20 | 10 20 10 Greatest Overweight (x) 3 | 1 3 3 Average Overweight (x) 2 | . 2 3 Largest Inventory Capacity 15 | 8 15 15 Average Capacity 14 | 7 14 15 Most Carried 15 | 3 15 15 Average Carried 13 | 1 13 14 Final Capacity 15 | 8 15 15 Final Carried 15 | 3 15 12 Class Distribution -------------------- 100% | Mutant Dominant Class ---------------- Mutant | -10/Materials Mutant | -10/Mines Resources | -11 -10 -10 ----------- Run | Yrd Mat Min Matter Collected 519 | 270 249 . Remotely . | . . . Salvage Created 617 | 107 510 . Parts 62 | 6 56 . Haulers Intercepted 1 | . 1 . Recyclers Shooed . | . . . Parts Field Recycled . | . . . Retrieved Matter . | . . . Parts Self-Destructed . | . . . Prevented . | . . . Parts Restored . | . . . Kills | -11 -10 -10 ------- Run | Yrd Mat Min Combat Hostiles Destroyed 17 | . 16 1 Guns 8 | . 8 . Cannons 9 | . 8 1 Classes Destroyed 10 | 2 7 1 Worker 1 | . 1 . Tunneler 2 | 2 . . Hauler 1 | . 1 . Recycler 1 | 1 . . Mechanic 1 | . 1 . Operator 3 | . 3 . Watcher 2 | . 2 . Swarmer 9 | . 9 . Grunt 7 | . 7 . Demolisher 1 | . . 1 Best Kill Streak 4 | 3 4 1 Combat Bots Only 3 | . 3 1 Max Kills in Single Turn 1 | 1 1 1 Gunslinging . | . . . Exploded . | . . . Melee . | . . . Uniques/NPCs Destroyed . | . . . Combat | -11 -10 -10 -------- Run | Yrd Mat Min Hostile Shots Fired 74 | . 54 20 Missed 13 | . 12 1 Hits 61 | . 42 19 Projectile 61 | . 42 19 AOE 20 | . . 20 Damage Taken 1142 | . 408 734 Core 259 | . 50 209 Absorbed by Shields . | . . . Redirected to Shielding 51 | . 13 38 Regen/Repaired (Parts) 34 | . 34 . Core Remaining (%) 100 | 100 . . Volleys Fired 73 | 8 56 9 Largest 2 | 2 2 2 Hottest 80 | 80 80 66 Shots Fired 146 | 16 112 18 Gun 83 | 16 64 3 Cannon 63 | . 48 15 Launcher . | . . . Special . | . . . Kinetic 66 | . 48 18 Thermal 80 | 16 64 . Explosive . | . . . Electromagnetic . | . . . Robot Hit Streak 10 | 5 10 2 Robot Miss Streak 5 | 3 5 4 Penetration Max . | . . . Secondary Targets 1 | . 1 . Max Gunslinging Chain 1 | . 1 . Shots Hit Robots 76 | 9 60 7 Core Hits 34 | 4 29 1 Critical Kills . | . . . Critical Parts Destroyed . | . . . Critical Strikes 4 | . 4 . Blast 4 | . 4 . Melee Attacks . | . . . Impact . | . . . Slashing . | . . . Piercing . | . . . Sneak Attacks . | . . . Combat Hostiles . | . . . Follow-up Attacks . | . . . Damage Inflicted 1179 | 101 930 148 Guns 557 | 101 450 6 Cannons 622 | . 480 142 Explosions . | . . . Melee . | . . . Ramming . | . . . Kinetic 628 | . 480 148 Thermal 551 | 101 450 . Explosive . | . . . Electromagnetic . | . . . Impact . | . . . Slashing . | . . . Piercing . | . . . Highest Corruption . | . . . Average Corruption . | . . . Corruption Purged . | . . . Corruption Blocked . | . . . Overload Shots . | . . . Overflow Damage 15 | . 15 . Projectiles 15 | . 15 . Explosions . | . . . Melee . | . . . Knockbacks 9 | . 6 3 Impact . | . . . Kinetic 9 | . 6 3 Secondary . | . . . Self-Inflicted Damage . | . . . Shots . | . . . Rammed 1 | . 1 . Targets Rammed 1 | . 1 . Kicked . | . . . Crushed . | . . . Highest Temperature 126 | 108 126 10 Average Temperature 31 | 48 31 3 Received Heat Transfer 81 | . 81 . Siege Activations . | . . . Martial Activations . | . . . Shielding Activations . | . . . Robots Disrupted . | . . . Combat Hostiles . | . . . Robots Corrupted . | . . . Combat Hostiles . | . . . Parts Fried . | . . . Impact Corruptions . | . . . Robots Melted . | . . . Combat Hostiles . | . . . Parts Melted 1 | . 1 . Heat Transferred 1250 | 225 1025 . Parts Sabotaged . | . . . Parts Stolen . | . . . Parts Stripped . | . . . Power Chain Reactions . | . . . Alert | -11 -10 -10 ------- Run | Yrd Mat Min Maximum Alert Level . | . . . Low Security (%) 100 | 100 100 100 Level 1 . | . . . Level 2 . | . . . Level 3 . | . . . Level 4 . | . . . Level 5 . | . . . High Security . | . . . Max Security . | . . . Peak Influence 173 | 10 173 30 Initial 27 | . . 27 Average 84 | 1 98 11 Influence Increases 533 | 15 488 30 Destroy 0b10 Robot/C 340 | . 320 20 Destroy 0b10 Robot/NC 55 | 15 40 . Destroy Leader 96 | . 86 10 Successful Hack 24 | . 24 . Disable Machine 15 | . 15 . Destroy Structure 3 | . 3 . Influence Decreases 533 | 15 416 102 Entered New Map 45 | . . 45 Time Decay 458 | 15 406 37 Lost Part 30 | . 10 20 Squads Dispatched 4 | . 4 . Investigation 1 | . 1 . Extermination . | . . . Reinforcement 3 | . 3 . Assault . | . . . Garrison . | . . . Intercept . | . . . Searches Triggered . | . . . Construction Impeded . | . . . Haulers Reinforced . | . . . Active Scanning Responses . | . . . Cargo Convoy Interrupts . | . . . Stealth | -11 -10 -10 --------- Run | Yrd Mat Min Distress Signals 1 | . 1 . Communications Jammed . | . . . Distress Signals . | . . . Times Spotted 32 | . 27 5 Peak Tracking Total 5 | . 3 5 Tactical Retreats . | . . . Traps | -11 -10 -10 ------- Run | Yrd Mat Min Traps Triggered 2 | . 2 . Indirectly . | . . . Trap Hack Attempts . | . . . Triggered . | . . . Disarmed . | . . . Reprogrammed . | . . . Reused . | . . . Traps Extracted . | . . . Installed . | . . . Triggered . | . . . Machines | -11 -10 -10 ---------- Run | Yrd Mat Min Machines Disabled 1 | . 1 . Max in Single Turn 1 | . 1 . Machines Repaired . | . . . Machines Dismantled . | . . . Machines Sabotaged . | . . . Overloaded Fab Kills . | . . . Hacking | -11 -10 -10 --------- Run | Yrd Mat Min Machines Accessed 5 | . 5 . Terminals 4 | . 4 . Fabricators . | . . . Repair Stations 1 | . 1 . Recycling Units . | . . . Scanalyzers . | . . . Garrison Access . | . . . Total Hacks 15 | . 15 . Successful 10 | . 10 . Failed 5 | . 5 . Catastrophic . | . . . Database Lockouts . | . . . Manual 12 | . 12 . Terminals 13 | . 13 . Fabricators . | . . . Repair Stations 2 | . 2 . Recycling Units . | . . . Scanalyzers . | . . . Garrison Access . | . . . Terminal Hacks 1 | . 1 . Terminal Index 1 | . 1 . Fabricator Hacks . | . . . Repair Station Hacks 2 | . 2 . Scan Component 1 | . 1 . Repair 1 | . 1 . Recycling Unit Hacks . | . . . Scanalyzer . | . . . Garrison Access Hacks . | . . . Unauthorized Hacks 7 | . 7 . Terminals 7 | . 7 . Assimilate 1 | . 1 . Botnet 3 | . 3 . Skim 3 | . 3 . Fabricators . | . . . Repair Stations . | . . . Recycling Units . | . . . Scanalyzers . | . . . Garrison Access . | . . . Data Cores Recovered . | . . . Used . | . . . Hacking Detections 4 | . 4 . Full Trace Events . | . . . Feedback Events . | . . . Feedback Blocked . | . . . Robot Schematics Acquired . | . . . Robots Built . | . . . Authchips . | . . . Time . | . . . Total Robot Build Rating . | . . . Part Schematics Acquired . | . . . Parts Built . | . . . Authchips . | . . . Time . | . . . Total Part Build Rating . | . . . Part Studies Acquired . | . . . Parts Repaired 1 | . 1 . Time 26 | . 26 . Parts Recycled . | . . . Recycled Matter . | . . . Retrieved Matter . | . . . Retrieved Components . | . . . Parts Scanalyzed . | . . . Part Schematics Acquired . | . . . Parts Damaged . | . . . Bothacking | -11 -10 -10 ------------ Run | Yrd Mat Min Used RIF Installer . | . . . Robots Hacked . | . . . Non-combat . | . . . Combat . | . . . Robot Hacks Applied . | . . . Relay Couplers Released . | . . . Fabnet Peak Effective % . | . . . Robots Rewired . | . . . Allies Hacked . | . . . Hacks Repelled . | . . . Allies | -11 -10 -10 -------- Run | Yrd Mat Min Total Allies 1 | . 1 . Largest Group 1 | . 1 1 Highest-Rated Group 10 | . 10 10 Highest-Rated Ally 10 | . 10 10 Total Orders . | . . . Ally Attacks . | . . . Total Damage . | . . . Kills . | . . . Allies Corrupted . | . . . Allies Melted . | . . . Intel | -11 -10 -10 ------- Run | Yrd Mat Min Active Infowar (turns) 149 | 5 144 . Seismic 149 | 5 144 . Robot Analysis Total . | . . . Derelict Logs Recovered 1 | . . 1 Drone Launches . | . . . Drone Recoveries . | . . . Exploration | -11 -10 -10 ------------- Run | Yrd Mat Min Turns Passed 1179 | 70 1006 103 Spaces Moved 731 | 42 638 51 Core 4 | 4 . . Treads 3 | . 3 . Legs . | . . . Wheels 724 | 38 635 51 Hover . | . . . Flight . | . . . Fastest Speed 50 | 50 95 125 Average Speed 118 | 78 120 125 Slowest Speed 240 | 95 240 125 Overloaded Moves . | . . . Propulsion Burnouts . | . . . Robots Hopped . | . . . Potential Cave-ins . | . . . Cave-ins Triggered . | . . . Exploration Rate (%) 38 | 4 95 17 Regions Visited 2 Branch Regions 1 Pre-discovered Areas 1 | . . 1 Known Exits Taken . | . . . Unknown Exits Taken 2 | 1 1 . Scrap Searched . | . . . Spaces Dug . | . . . Terrain Destroyed 1 | . 1 . Melee . | . . . Projectile 1 | . 1 . AOE . | . . . Terrain Rammed . | . . . Walls Destroyed . | . . . Machines Disabled . | . . . Actions | -11 -10 -10 --------- Run | Yrd Mat Min Total 891 | 59 759 73 Wait 50 | . 40 10 Move 729 | 41 637 51 Hop . | . . . Pick Up 18 | 3 15 . Fast Attach 8 | 7 1 . Attach 4 | . 1 3 Detach . | . . . Swap 4 | . 4 . Drop 4 | . 4 . Fire 73 | 8 56 9 Melee . | . . . Ram . | . . . Kick . | . . . Crush 1 | . 1 . Escape Stasis . | . . . Rewire . | . . . Trap . | . . . Miscellaneous . | . . . Route ------- -11/Scrapyard -10/Materials (discovered 4 exits: [*Mat x3] / [*Min]) -10/Mines (discovered 1 exit: [*Mat]) History --------- Turn | Location | Event 15 | -11/Scrapyard | Discovered new exit (range 16) 71 | -11/Scrapyard | Entered Materials 305 | -10/Materials | Build established: Mutant 477 | -10/Materials | Discovered new exit (range 8) 530 | -10/Materials | Discovered new exit (range 13) 695 | -10/Materials | Discovered new exit (range 10) 845 | -10/Materials | Repaired Wheel 855 | -10/Materials | Discovered new exit (range 16) 1077 | -10/Materials | Entered Mines 1077 | -10/Mines | Accompanied by 1 ally 1084 | -10/Mines | Discovered new exit (range 8) 1087 | -10/Mines | Learned location of Mines (-9) 1125 | -10/Mines | Assembled infested the area 1130 | -10/Mines | Assisted by a Guerilla fighting off Assembled 1166 | -10/Mines | Core integrity fell below 50% 1177 | -10/Mines | Core integrity fell below 20% 1180 | -10/Mines | Destroyed by D-53 Grenadier with Mini Grenade Launcher Last Messages --------------- 01164_ Propulsion Shielding destroyed. 01165_ U-05 Engineer lays Concrete. 01167_ K-01 Serf collects debris. 01167_ Imp. Light Cannon destroyed. 01168_ U-05 Engineer lays Concrete. 01168_ D-53 Grenadier destroyed. 01169_ Imp. Light Cannon destroyed. 01170_ U-05 Engineer builds a Wall. 01171_ The unstable cave ceiling collapses. 01171_ K-01 Serf collects debris. 01173_ The unstable cave ceiling collapses. 01173_ Wheel destroyed. 01174_ U-05 Engineer lays Concrete. 01174_ K-01 Serf collects debris. 01175_ U-05 Engineer lays Concrete. 01176_ The unstable cave ceiling collapses. 01176_ U-05 Engineer builds a Wall. 01178_ D-53 Grenadier knocked back. 01179_ K-01 Serf collects debris. 01180_ U-05 Engineer lays Concrete. Map ----- +----------------------------------------------------+ | ?????????????????????????????????????????????????? | | ?????????????????????????????????????????????????? | | ?????????????????????????????????????????????????? | | ?????????????????????????????????????????????????? | | ?????????????????????????????????????????????????? | | ?????????????????????????????????????????????????? | | ?????????????????????????????????????????????????? | | ?????????????????????????????????#####???????????? | | ????????????????????????????????## ##??????????? | | ?????????????????????###????????# #??????????? | | ?????????????????????? ???????# #??????????? | | ???????????????????????# ??????## #??????????? | | ??????????????????###### ######?## #??????????? | | ?????????????????## ##?## #??????????? | | ?????????????????# | ##?# ##?????????? | | ??????????????### ?%=# ### #?????????? | | ??????????????? * ?# < #?????????? | | ???????????????? ??# #?????????? | | ???????????? ???? % ??######## ### ##?????????? | | ????????????? #k?# ????###### ### ##?????????? | | ??????????????? # ?# #### # ## #?????????? | | ????????????????? # u #?????????? | | ??????????????????? # # ##?????????? | | ???????? ?????????# # ##??????????? | | ??????? *?????# #######???????????? | | ???????? ### @ # #?????????????????? | | ???????? #% d ##?????????????????? | | ???????? # % % #??????????????????? | | ???????? #??????????????????? | | ???????? ##### ## ##??????????????????? | | ?????????????????#############???????????????????? | | ?????????????????????????????????????????????????? | | ?????????????????????????????????????????????????? | | ?????????????????????????????????????????????????? | | ?????????????????????????????????????????????????? | | ?????????????????????????????????????????????????? | | ?????????????????????????????????????????????????? | | ?????????????????????????????????????????????????? | | ?????????????????????????????????????????????????? | | ?????????????????????????????????????????????????? | | ?????????????????????????????????????????????????? | | ?????????????????????????????????????????????????? | | ?????????????????????????????????????????????????? | | ?????????????????????????????????????????????????? | | ?????????????????????????????????????????????????? | | ?????????????????????????????????????????????????? | | ?????????????????????????????????????????????????? | | ?????????????????????????????????????????????????? | | ?????????????????????????????????????????????????? | | ?????????????????????????????????????????????????? | +----------------------------------------------------+ Best States ------------- Heat Dissipation 25 Energy Generation 10 Energy Capacity 125 Matter Stores 300 Matter Capacity 300 Sight Range 16 Terrain Scan Density 10 Propulsion Shielding 33 Evasion (%) 44 Recoil Reduction 1 Item Schematics ----------------- None Robot Schematics ------------------ None Fabricated ------------ Nothing Repaired ---------- Wheel | 15% | -10/Materials Studied --------- None Alien Tech Used ----------------- None Achievements -------------- None Challenges ------------ None Game ------ Seed BurstCoordinationTendrils Manual? 0 Play Time 00:10:42 Cumulative 294.6 hours Start 2026.03.15 @ 14:54:09 End 2026.03.15 @ 15:03:35 Sessions 1 Manual Loads 0 Difficulty Rogue Special Mode None Game No. 147 Rogue 147 Adventurer 0 Explorer 0 Win Type - Total 19 Types 7/0/5/1/4/1/0/0/0/1 Lore% 86 Gallery% 70 Achievement% 87 Wizard Run 0 Options --------- Layout 1 ASCII 0 Keyboard 0 Movement Numpad Keybinds 0 Fullscreen 1 Font 24/Smallcaps Map View 50x35 Zoom Use 0% Tactical HUD 1 Map Filters NONE Filters NONE Steam 1 RUN: 14bf6f91-773f-4622-a289-3fb182d241ad